fUST/lending_fUST_20241010
["ID","MTS","AMOUNT","RATE_DAILY","PERIOD"]
[340098054,1728520240928,-151.0,0.00038373,14]
[340098055,1728520240939,-151.0,0.00038374,14]
[340098056,1728520240951,-151.0,0.00038374,14]
[340098057,1728520240961,-151.0,0.00038374,14]
[340098058,1728520240970,-151.0,0.00038374,14]
[340098059,1728520240979,-4305.11911704,0.00038374,5]
[340098060,1728520240988,-615.01701672,0.00038375,5]
[340098061,1728520240997,-196.82751364,0.00038382,2]
[340098062,1728520241008,-996.49570623,0.00038382,2]
[340098063,1728520241020,-325.32870962,0.00038382,15]
[340098064,1728520241030,-500.0,0.00038382,15]
[340098065,1728520241041,-500.0,0.00038382,15]
[340098066,1728520241052,-281.18801803,0.00038382,15]
[340098067,1728520241062,-1224.81809816,0.00038382,15]
[340098068,1728520241072,-1224.81809816,0.00038382,15]
[340098069,1728520241082,-1224.81809816,0.00038382,15]
[340098070,1728520241091,-500.0,0.00038382,15]
[340098071,1728520241101,-500.0,0.00038382,15]
[340098072,1728520241110,-229.59154638,0.00038382,15]
[340098073,1728520241119,-441.88118196,0.00038382,15]
[340098074,1728520241128,-1224.81809816,0.00038382,15]
[340098075,1728520241137,-1224.81809816,0.00038382,15]
[340098076,1728520241147,-1224.81809816,0.00038382,15]
[340098077,1728520241158,-1224.81809816,0.00038382,15]
[340098078,1728520241172,-1224.81809816,0.00038382,15]
[340098079,1728520241183,-1224.81809816,0.00038382,15]
[340098080,1728520241193,-1224.81809816,0.00038382,15]
[340098081,1728520241202,-1224.81809816,0.00038382,15]
[340098082,1728520241213,-1224.81809816,0.00038382,15]
[340098083,1728520241223,-1224.81809816,0.00038382,15]
[340098084,1728520241233,-1224.81809816,0.00038382,15]
[340098085,1728520241243,-500.0,0.00038384,2]
[340098086,1728520241252,-1000.0,0.00038384,7]
[340098087,1728520241261,-20962.84880275,0.00038384,120]
[340098157,1728521145808,5000.0,0.0002,30]
[340098159,1728521169802,9136.0,0.0002,10]
[340098258,1728521445872,-268.0,0.00035,2]
[340098310,1728522631881,-167.12469154,0.00034282,2]
[340098311,1728522631892,-166.666666,0.00035141,2]
[340098312,1728522631902,-164.435845,0.00035274,2]
[340098313,1728522631912,-1123.8744212,0.00035457,2]
[340098314,1728522631922,-162.460116,0.00035728,2]
[340098315,1728522631932,-362.666357,0.00035786,2]
[340098316,1728522631942,-165.672514,0.00035839,2]
[340098317,1728522631951,-1703.62801273,0.0003602,2]
[340098352,1728522638098,-287.38831,0.0003602,2]
[340098354,1728522638111,-717.31147427,0.0003602,2]
[340098355,1728522638121,-160.0,0.00036025,3]
[340098357,1728522638130,-162.460116,0.000361,2]
[340098360,1728522638142,-466.0318728,0.00036186,2]
[340098361,1728522638151,-160.0,0.00036286,4]
[340098363,1728522638161,-305.84677061,0.00036339,120]
[340098365,1728522638172,-150.0,0.000364,27]
[340098367,1728522638185,-162.460116,0.00036472,2]
[340098369,1728522638196,-788.045279,0.0003648,2]
[340098371,1728522638207,-160.0,0.00036546,5]
[340098372,1728522638219,-153.0,0.00036575,2]
[340098374,1728522638230,-153.0,0.00036575,2]
[340098376,1728522638241,-153.0,0.00036575,2]
[340098378,1728522638252,-153.0,0.00036575,2]
[340098380,1728522638261,-153.0,0.00036575,2]
[340098383,1728522638272,-306.0,0.00036712,2]
[340098385,1728522638284,-153.0,0.00036712,2]
[340098387,1728522638294,-153.0,0.00036712,2]
[340098389,1728522638303,-306.3571712,0.00036712,2]
[340098391,1728522638313,-153.0,0.00036712,2]
[340098393,1728522638322,-153.0,0.00036712,2]
[340098395,1728522638331,-209.799474,0.00036712,2]
[340098396,1728522638340,-160.0,0.00036807,6]
[340098397,1728522638349,-162.460116,0.00036845,2]
[340098398,1728522638358,-600.0,0.00036931,2]
[340098399,1728522638367,-160.0,0.00037067,7]
[340098400,1728522638375,-13.79176267,0.00037217,2]
[340098591,1728523846455,-3.0,0.0002509,2]
[340098592,1728524010325,10000.0,0.00021022,2]
[340098593,1728524015969,10000.0,0.00021022,2]
[340098594,1728524022086,10000.0,0.00021022,2]
[340098595,1728524029140,10000.0,0.00021022,2]
[340098596,1728524036452,10000.0,0.00021022,2]
[340098597,1728524042770,10000.0,0.00021022,2]
[340098786,1728526232741,-403.65069722,0.00021741,2]
[340098833,1728526239245,-98.53620796,0.00021741,2]
[340098835,1728526239255,-168.0,0.000242,120]
[340098837,1728526239264,-233.46379204,0.0002509,2]
[340098839,1728526239276,-1009.50087834,0.0002509,2]
[340098854,1728526240735,-2149.29258513,0.0002509,2]
[340098856,1728526240745,-164.435845,0.00031851,2]
[340098857,1728526240755,-166.666666,0.00031974,2]
[340098858,1728526240765,-158.987414,0.00032262,2]
[340098859,1728526240774,-158.987414,0.00032374,2]
[340098860,1728526240783,-183.138452,0.00032429,2]
[340098861,1728526240793,-1270.2086302,0.00032442,2]
[340098862,1728526240802,-151.988228,0.00032442,7]
[340098863,1728526240811,-187.12454,0.00032442,7]
[340098864,1728526240820,-158.987414,0.00032486,2]
[340098865,1728526240829,-158.987414,0.00032598,2]
[340098866,1728526240838,-158.987414,0.0003271,2]
[340098867,1728526240847,-151.0,0.00032821,7]
[340098868,1728526240857,-158.987414,0.00032822,2]
[340098869,1728526240867,-151.0,0.00032933,14]
[340098870,1728526240876,-158.734465,0.00032933,14]
[340098871,1728526240886,-151.0,0.00032933,14]
[340098872,1728526240896,-158.987414,0.00032934,2]
[340098873,1728526240905,-158.987414,0.00033046,2]
[340098874,1728526240914,-158.987414,0.00033158,2]
[340098875,1728526240923,-158.987414,0.0003327,2]
[340098876,1728526240932,-151.0,0.00033271,14]
[340098877,1728526240941,-151.0,0.00033271,14]
[340098878,1728526240950,-158.987414,0.00033382,2]
[340098879,1728526240960,-158.987414,0.00033495,2]
[340098880,1728526240969,-289.691488,0.00033496,14]
[340098881,1728526240978,-158.987414,0.00033607,2]
[340098882,1728526240988,-176.88,0.00033652,14]
[340098883,1728526240997,-158.987414,0.00033719,2]
[340098884,1728526241009,-158.987414,0.00033831,2]
[340098885,1728526241022,-500.0,0.00033933,5]
[340098886,1728526241033,-158.987414,0.00033943,2]
[340098887,1728526241045,-160.0,0.00034006,3]
[340098888,1728526241055,-209.799474,0.00034247,2]
[340098889,1728526241063,-418.8783439,0.00034247,2]
[340098890,1728526241072,-826.2391968,0.00034658,2]
[340098891,1728526241082,-309.779119,0.00034658,2]
[340098892,1728526241094,-716.5142,0.00034837,30]
[340098893,1728526241105,-821.9023209,0.00034904,2]
[340098894,1728526241117,-764.131536,0.00034986,2]
[340098895,1728526241128,-270.0,0.00034997,2]
[340098896,1728526241140,-223.58390269,0.00034997,2]
[340098897,1728526241153,-7347.29981214,0.00034997,2]
[340098898,1728526241164,-347.25997532,0.00035,2]
[340098899,1728526241175,-194.07337087,0.00035,14]
[340098900,1728526241185,-21085.42009088,0.00035,2]
[340098901,1728526241197,-160.0,0.00035097,4]
[340098902,1728526241210,-398.73978154,0.00035303,5]
[340098903,1728526241221,-5000.0,0.000355,30]
[340098904,1728526241233,-223.58390268,0.00035759,2]
[340098905,1728526241244,-510.0,0.0003589,2]
[340098906,1728526241256,-413.3241676,0.0003589,2]
[340098907,1728526241266,-413.3241676,0.0003589,2]
[340098908,1728526241277,-209.799474,0.0003589,2]
[340098909,1728526241289,-510.0,0.00036,2]
[340098910,1728526241298,-154.1009444,0.00036164,2]
[340098911,1728526241308,-160.0,0.00036188,5]
[340098912,1728526241318,-5000.0,0.000365,35]
[340098913,1728526241330,-223.58390268,0.00036522,2]
[340098914,1728526241339,-298.359,0.00036587,2]
[340098915,1728526241347,-151.01,0.00036587,2]
[340098916,1728526241359,-513.142,0.00036587,2]
[340098917,1728526241368,-300.55,0.00036587,2]
[340098918,1728526241378,-413.3241676,0.00036712,2]
[340098919,1728526241388,-209.799474,0.00036712,2]
[340098920,1728526241399,-165.42920358,0.00036778,2]
[340098921,1728526241408,-604.28162453,0.00036931,2]
[340098922,1728526241418,-1864.71813,0.00036989,4]
[340098923,1728526241428,-318.45,0.0003699,10]
[340098924,1728526241438,-27995.279999,0.0003699,7]
[340098925,1728526241447,-500.0,0.00036999,15]
[340098926,1728526241457,-566.68838436,0.00036999,15]
[340098927,1728526241466,-500.0,0.00036999,15]
[340098928,1728526241475,-500.0,0.00036999,15]
[340098929,1728526241486,-500.0,0.00036999,15]
[340098930,1728526241495,-500.0,0.00036999,15]
[340098931,1728526241505,-500.0,0.00036999,15]
[340098932,1728526241514,-500.0,0.00036999,15]
[340098933,1728526241524,-500.0,0.00036999,15]
[340098934,1728526241533,-500.0,0.00036999,15]
[340098935,1728526241543,-500.0,0.00036999,15]
[340098936,1728526241554,-500.0,0.00036999,15]
[340098937,1728526241564,-500.0,0.00036999,15]
[340098938,1728526241574,-500.0,0.00036999,15]
[340098939,1728526241583,-500.0,0.00036999,15]
[340098940,1728526241591,-500.0,0.00036999,15]
[340098941,1728526241602,-500.0,0.00036999,15]
[340098942,1728526241611,-559.23483145,0.00036999,15]
[340098943,1728526241620,-500.0,0.00036999,15]
[340098944,1728526241630,-500.0,0.00036999,15]
[340098945,1728526241639,-500.0,0.00036999,15]
[340098946,1728526241649,-10464.76754135,0.00037,120]
[340099125,1728527438377,-164.28780814,0.00027,120]
[340099126,1728527438387,-503.05095984,0.0002888,2]
[340099127,1728527438490,-516.62515697,0.00029,30]
[340099128,1728527438500,-186.85043379,0.0003065,2]
[340099129,1728527438510,-183.1384532,0.00034461,2]
[340099130,1728527438519,-175.7605682,0.00034688,2]
[340099131,1728527438527,-413.3241676,0.00035068,2]
[340099132,1728527438536,-288.97927481,0.0003589,2]
[340099140,1728527440045,-94.02072519,0.0003589,2]
[340099141,1728527440054,-383.0,0.00036,2]
[340099142,1728527440064,-244.97927481,0.00036164,2]
[340099143,1728527440077,-61.02072519,0.00036164,2]
[340099144,1728527440087,-526.0,0.0003644,2]
[340099145,1728527440096,-1226.657,0.0003644,2]
[340099146,1728527440106,-5768.71179783,0.00036446,2]
[340099147,1728527440115,-792.099101,0.0003648,2]
[340099148,1728527440134,-265.38,0.0003649,10]
[340099149,1728527440146,-45671.67877442,0.000365,120]
[340099150,1728527440160,-140846.32122558,0.000365,120]
[340099151,1728527440170,-413.4583545,0.00036575,2]
[340099152,1728527440180,-413.3241676,0.00036575,2]
[340099153,1728527440190,-153.5591427,0.00036712,2]
[340099154,1728527440200,-306.0,0.00036712,2]
[340099155,1728527440210,-209.799474,0.00036712,2]
[340099156,1728527440220,-209.799474,0.00036712,2]
[340099157,1728527440231,-1312.43143947,0.00036778,2]
[340099223,1728528638317,-272.38931034,0.000222,120]
[340099224,1728528638328,-171.8062095,0.00034182,2]
[340099225,1728528638340,-209.0,0.00035,120]
[340099226,1728528638352,-165.27366671,0.0003551,2]
[340099227,1728528638363,-413.3241676,0.00035753,2]
[340099228,1728528638372,-411.248084,0.00035753,2]
[340099229,1728528638382,-482.96725074,0.0003579,2]
[340099230,1728528638391,-400.0,0.00035889,2]
[340099231,1728528638401,-287.0,0.0003589,2]
[340099232,1728528638411,-413.3241676,0.0003589,2]
[340099233,1728528638420,-209.799474,0.0003589,2]
[340099234,1728528638429,-413.3241676,0.0003589,2]
[340099235,1728528638438,-209.799474,0.0003589,2]
[340099236,1728528638448,-825.8300584,0.0003589,2]
[340099237,1728528638457,-209.799474,0.0003589,2]
[340099238,1728528638469,-413.3241676,0.0003589,2]
[340099239,1728528638480,-209.799474,0.0003589,2]
[340099240,1728528638490,-413.3241676,0.0003589,2]
[340099241,1728528638502,-412.71046,0.0003589,2]
[340099242,1728528638514,-181.34443797,0.00036,60]
[340099243,1728528638524,-287.0,0.00036,2]
[340099244,1728528638535,-7115.84569883,0.00036254,2]
[340099245,1728528638546,-152.98448044,0.00036376,2]
[340099246,1728528638556,-150.36,0.00036403,2]
[340099247,1728528638566,-633.6792808,0.0003648,2]
[340099248,1728528638577,-2003.66969769,0.000365,15]
[340099249,1728528638586,-211.43074712,0.000365,2]
[340099250,1728528638595,-211.43074709,0.00036567,2]
[340099251,1728528638605,-337.92,0.00036574,10]
[340099252,1728528638614,-281.6,0.00036574,10]
[340099253,1728528638623,-234.66,0.00036574,10]
[340099254,1728528638632,-194.07337087,0.00036584,14]
[340099255,1728528638641,-12499.92320521,0.00036584,4]
[340099271,1728528640034,-95014.35895479,0.00036584,4]
[340099272,1728528640045,-7115.84569884,0.00036585,2]
[340099274,1728528640055,-566.68838436,0.00036599,15]
[340099276,1728528640065,-500.0,0.00036599,15]
[340099278,1728528640075,-500.0,0.00036599,15]
[340099279,1728528640085,-500.0,0.00036599,15]
[340099280,1728528640094,-500.0,0.00036599,15]
[340099281,1728528640104,-500.0,0.00036599,15]
[340099282,1728528640114,-500.0,0.00036599,15]
[340099283,1728528640123,-500.0,0.00036599,15]
[340099284,1728528640132,-500.0,0.00036599,15]
[340099285,1728528640141,-500.0,0.00036599,15]
[340099286,1728528640151,-500.0,0.00036599,15]
[340099287,1728528640160,-500.0,0.00036599,15]
[340099288,1728528640170,-500.0,0.00036599,15]
[340099289,1728528640179,-500.0,0.00036599,15]
[340099290,1728528640188,-500.0,0.00036599,15]
[340099291,1728528640197,-500.0,0.00036599,15]
[340099292,1728528640206,-500.0,0.00036599,15]
[340099293,1728528640216,-500.0,0.00036599,15]
[340099294,1728528640225,-500.0,0.00036599,15]
[340099295,1728528640234,-257.05219128,0.00036599,15]
[340099296,1728528640243,-500.0,0.00036599,15]
[340099297,1728528640252,-500.0,0.00036599,15]
[340099298,1728528640262,-6935.98881695,0.000366,2]
[340099299,1728528640275,-54048.95118305,0.000366,2]
[340099300,1728528640285,-211.43074709,0.00036634,2]
[340099301,1728528640294,-154.42298085,0.00036666,14]
[340099302,1728528640304,-211.43074709,0.00036701,2]
[340099303,1728528640313,-198.56,0.00036702,3]
[340099304,1728528640322,-595.68,0.00036702,3]
[340099305,1728528640332,-413.3241676,0.00036712,2]
[340099306,1728528640341,-413.3241676,0.00036712,2]
[340099307,1728528640350,-413.3241676,0.00036712,2]
[340099308,1728528640359,-413.3241676,0.00036712,2]
[340099309,1728528640369,-409.7298749,0.00036712,2]
[340099310,1728528640379,-216.1491477,0.00036712,2]
[340099311,1728528640388,-211.43074709,0.00036768,2]
[340099312,1728528640397,-151.0,0.0003678,14]
[340099313,1728528640507,-9934.07808039,0.0003678,25]
[340099314,1728528640522,-36361.5324616,0.0003678,5]
[340099315,1728528640533,-1291.87138484,0.0003679,5]
[340099338,1728529618191,1721.8857884,0.00021022,120]
[340099376,1728529832403,-299.9867181,0.00033956,2]
[340099377,1728529832412,-595.65564958,0.00034633,6]
[340099378,1728529832422,-160.0,0.00034733,3]
[340099379,1728529832431,-303.10170546,0.00034936,2]
[340099380,1728529832440,-178.0,0.00034999,2]
[340099381,1728529832450,-2392.1520363,0.00035,7]
[340099395,1728529840631,-4416.06383885,0.00035,7]
[340099396,1728529840642,-413.3241676,0.00035068,2]
[340099397,1728529840654,-5200.0,0.000355,40]
[340099398,1728529840663,-215.0,0.0003589,2]
[340099399,1728529840673,-5000.0,0.00036,40]
[340099400,1728529840684,-215.0,0.00036,2]
[340099401,1728529840696,-153.0,0.00036164,2]
[340099402,1728529840707,-153.0,0.00036164,2]
[340099403,1728529840718,-153.0,0.00036164,2]
[340099404,1728529840728,-467.28525219,0.00036183,2]
[340099405,1728529840738,-506.9434246,0.0003648,2]
[340099406,1728529840748,-5000.0,0.000365,50]
[340099407,1728529840760,-160.0,0.00036551,4]
[340099408,1728529840770,-6428.88733557,0.00036756,2]
[340099409,1728529840781,-6030.49079378,0.000368,7]
[340099410,1728529840792,-194.07337087,0.000368,14]
[340099411,1728529840803,-546.38057207,0.00036856,30]
[340099412,1728529840813,-1000.0,0.00036866,7]
[340099413,1728529840825,-16166.7741354,0.00036868,5]
[340099414,1728529840836,-414.4500855,0.00036868,5]
[340099447,1728530918058,5682.61274082,0.00021,60]
[340099535,1728531032339,-162.50014654,0.00033731,2]
[340099537,1728531032350,-591.056446,0.00034795,2]
[340099539,1728531032359,-195.189948,0.00034842,2]
[340099541,1728531032369,-195.189948,0.0003575,2]
[340099543,1728531032379,-160.01437222,0.00035755,120]
[340099544,1728531032392,-61.26078405,0.00035755,120]
[340099545,1728531032401,-161.0,0.0003589,2]
[340099546,1728531032410,-161.0,0.00036,2]
[340099547,1728531032420,-5956.75254571,0.000363,2]
[340099549,1728531032430,-500.0,0.00036385,2]
[340099550,1728531032440,-5956.75254571,0.00036533,2]
[340099552,1728531032449,-195.189948,0.00036658,2]
[340099554,1728531032459,-6428.88733557,0.00036767,2]
[340099556,1728531032468,-197.47309252,0.00036777,2]
[340099558,1728531032478,-1499.52118906,0.00036777,2]
[340099560,1728531032487,-158.57306031,0.00036788,2]
[340099562,1728531032498,-546.68,0.0003679,3]
[340099564,1728531032508,-195.55,0.0003679,10]
[340099566,1728531032518,-154.42298085,0.00036799,14]
[340099567,1728531032528,-9934.07808039,0.000368,25]
[340099568,1728531032537,-150.83644,0.000368,2]
[340099569,1728531032548,-5000.0,0.000368,50]
[340099570,1728531032558,-6043.96241191,0.000368,7]
[340099571,1728531032568,-1721.27188394,0.000368,2]
[340099658,1728532240557,-178.316792,0.00034553,2]
[340099659,1728532240569,-294.44993344,0.00034795,2]
[340099660,1728532240582,-267.05369056,0.00034795,2]
[340099661,1728532240592,-234.92839715,0.00036192,2]
[340099676,1728532243504,-230.21413632,0.00036192,2]
[340099677,1728532243517,-500.0,0.00036385,2]
[340099678,1728532243529,-1747.82967869,0.00036596,2]
[340099679,1728532243639,-2574.75809993,0.00036596,2]
[340099704,1728533065013,35000.0,0.0002,2]
[340099780,1728533432665,-464.87984068,0.00026574,2]
[340099781,1728533432675,-1000.0,0.0002688,2]
[340099782,1728533432685,-178.316791,0.00034032,2]
[340099783,1728533432697,-533.428443,0.00034795,2]
[340099784,1728533432708,-178.316791,0.00035805,2]
[340099785,1728533432719,-306.0,0.00036164,2]
[340099786,1728533432730,-393.05902608,0.0003627,2]
[340099787,1728533432741,-500.0,0.00036385,2]
[340099788,1728533432752,-162.89011643,0.000366,2]
[340099789,1728533432762,-5625.27641865,0.000366,2]
[340099790,1728533432772,-162.89011642,0.0003663,2]
[340099791,1728533432783,-123.16069788,0.0003666,2]
[340099878,1728533443865,-39.72941854,0.0003666,2]
[340099879,1728533443874,-925.15042115,0.0003668,2]
[340099964,1728534631843,-2499.99999901,0.00028878,2]
[340099966,1728534631855,-179.9118877,0.00033849,2]
[340099968,1728534631865,-167.385969,0.00034337,2]
[340099970,1728534631875,-606.790438,0.00034684,2]
[340099971,1728534631884,-506.757021,0.00034795,2]
[340099972,1728534631893,-527.773699,0.0003534,2]
[340099973,1728534631903,-300.0,0.00035889,2]
[340099974,1728534631912,-209.799474,0.0003589,2]
[340099975,1728534631922,-209.799474,0.0003589,2]
[340099976,1728534631932,-209.799474,0.0003589,2]
[340099977,1728534631941,-209.799474,0.0003589,2]
[340099978,1728534631951,-419.598948,0.0003589,2]
[340099979,1728534631960,-1018.0,0.00036,2]
[340099980,1728534631972,-465.00888899,0.00036191,2]
[340099981,1728534631981,-857.14456479,0.00036199,2]
[340100020,1728534639852,-450.32509159,0.00036199,2]
[340100145,1728535832311,-188.0,0.00033,2]
[340100147,1728535832321,-162.0,0.00033,2]
[340100149,1728535832330,-188.0,0.00033151,2]
[340100151,1728535832339,-162.0,0.00033151,2]
[340100153,1728535832349,-188.0,0.00034521,2]
[340100155,1728535832358,-162.0,0.00034521,2]
[340100157,1728535832367,-481.41917,0.00034795,2]
[340100159,1728535832376,-313.0,0.00034999,2]
[340100161,1728535832385,-300.0,0.00034999,2]
[340100163,1728535832394,-10423.54985285,0.00035,3]
[340100165,1728535832403,-4922.11686631,0.0003589,2]
[340100167,1728535832412,-306.0,0.0003589,2]
[340100169,1728535832423,-166.70972456,0.000359,2]
[340100171,1728535832432,-6000.88557171,0.0003597,2]
[340100173,1728535832441,-151.0,0.0003597,14]
[340100175,1728535832450,-161.80169,0.0003597,14]
[340100177,1728535832459,-151.0,0.0003597,14]
[340100178,1728535832468,-151.0,0.0003597,14]
[340100179,1728535832477,-9000.0,0.0003598,2]
[340100180,1728535832487,-151.0,0.0003598,14]
[340100181,1728535832497,-158.863781,0.0003598,14]
[340100182,1728535832506,-164.775456,0.0003598,14]
[340100183,1728535832516,-194.07337087,0.0003598,14]
[340100184,1728535832534,-893.80703944,0.0003599,2]
[340100188,1728535838212,-8106.19296056,0.0003599,2]
[340100189,1728535838226,-151.0,0.0003599,14]
[340100190,1728535838239,-9191.30966568,0.00036,2]
[340100191,1728535838251,-151.0,0.00036,14]
[340100192,1728535838265,-2088.49488995,0.0003601,2]
[340100193,1728535838281,-3153.93009184,0.0003601,2]
[340100216,1728535843029,-349.66198431,0.0003601,2]
[340100217,1728535843142,-3407.9130339,0.0003601,2]
[340100218,1728535843156,-92.0869661,0.00036018,2]
[340100225,1728536042606,3097.15,0.00021022,2]
[340100427,1728537802893,866.52616664,0.00020781,2]
[340100510,1728538240489,-470.110533,0.00034795,2]
[340100511,1728538240499,-302.84859387,0.00035,2]
[340100512,1728538240509,-500.0,0.00035055,2]
[340100513,1728538240520,-424.9280446,0.00035068,2]
[340100514,1728538240531,-302.84859387,0.0003535,2]
[340100515,1728538240540,-500.0,0.00035555,2]
[340100517,1728538240549,-97.96034807,0.00035616,2]
[340100519,1728538240560,-208.03965193,0.00035616,2]
[340100520,1728538240570,-302.84859387,0.000357,2]
[340100522,1728538240579,-153.9142733,0.0003589,2]
[340100523,1728538240589,-153.0,0.0003589,2]
[340100524,1728538240599,-153.0,0.0003589,2]
[340100525,1728538240608,-166.70972454,0.000359,2]
[340100526,1728538240619,-4306.85225803,0.000359,2]
[340100527,1728538240629,-3636.36741891,0.00035983,2]
[340100528,1728538240638,-27845.280278,0.00036,2]
[340100529,1728538240648,-1000.0,0.00036,2]
[340100530,1728538240659,-9000.0,0.00036,2]
[340100531,1728538240668,-151.0,0.00036,14]
[340100532,1728538240688,-151.0,0.00036,14]
[340100533,1728538240698,-9000.0,0.0003601,2]
[340100534,1728538240708,-151.0,0.0003601,14]
[340100535,1728538240718,-151.0,0.0003601,14]
[340100536,1728538240729,-233.648433,0.0003601,14]
[340100537,1728538240740,-151.0,0.0003601,14]
[340100538,1728538240751,-302.84859387,0.0003605,2]
[340100539,1728538240762,-970.113197,0.00036055,2]
[340100540,1728538240773,-177.098201,0.0003616,2]
[340100541,1728538240783,-163.023898,0.0003616,2]
[340100542,1728538240792,-163.023898,0.0003616,2]
[340100543,1728538240802,-153.0,0.00036164,2]
[340100544,1728538240812,-2249.2817836,0.00036198,2]
[340100545,1728538240823,-337.13803204,0.000364,2]
[340100546,1728538240833,-151.0,0.0003647,14]
[340100547,1728538240843,-519.93,0.0003653,3]
[340100548,1728538240854,-259.97,0.0003653,3]
[340100549,1728538240866,-779.91,0.0003653,3]
[340100550,1728538240877,-4289.07074544,0.00036539,2]
[340100551,1728538240887,-46492.28113921,0.0003654,5]
[340100585,1728538246408,-162.96,0.00036531,10]
[340100586,1728538246419,-457.13726334,0.0003654,5]
[340100721,1728540631871,-250.0000031,0.00032368,2]
[340100722,1728540631883,-400.0,0.00032396,2]
[340100723,1728540631894,-300.0,0.00032396,2]
[340100724,1728540631905,-2546.15791793,0.00032397,2]
[340100725,1728540631918,-707.87334189,0.00032397,2]
[340100804,1728540645797,-21645.96874018,0.00032397,2]
[340100805,1728540645807,-649.63770377,0.000324,5]
[340100806,1728540645816,-162.5390517,0.00032517,2]
[340100807,1728540645826,-375.728751,0.00034795,2]
[340100808,1728540645835,-306.0,0.0003589,2]
[340100809,1728540645845,-308.6704715,0.0003589,2]
[340100810,1728540645854,-356.46866915,0.00036,120]
[340100811,1728540645863,-1000.0,0.00036,2]
[340100812,1728540645874,-1037.914628,0.0003616,2]
[340100813,1728540645884,-259.96,0.0003639,3]
[340100814,1728540645893,-58304.336645,0.000364,120]
[340100922,1728541832000,-166.37255194,0.0003,2]
[340100923,1728541832011,-167.0,0.0003286,120]
[340100924,1728541832020,-3420.910719,0.00033735,2]
[340100925,1728541832030,-316.14391336,0.00034795,2]
[340100926,1728541832050,-40.79840064,0.00034795,2]
[340100927,1728541832061,-306.0,0.00035068,2]
[340100928,1728541832071,-6967.35102545,0.00035772,2]
[340100929,1728541832080,-2370.14197365,0.00035893,2]
[340100946,1728541846034,-4597.20905181,0.00035893,2]
[340100947,1728541846044,-153.0,0.00036164,2]
[340100948,1728541846053,-500.0,0.00036299,15]
[340100949,1728541846063,-500.0,0.00036299,15]
[340100950,1728541846072,-525.70521913,0.00036299,15]
[340100951,1728541846081,-500.0,0.00036299,15]
[340100952,1728541846091,-500.0,0.00036299,15]
[340100953,1728541846102,-500.0,0.00036299,15]
[340100954,1728541846112,-500.0,0.00036299,15]
[340100955,1728541846123,-500.0,0.00036299,15]
[340100956,1728541846132,-280.56035343,0.000363,120]
[340100957,1728541846143,-161595.663355,0.000363,120]
[340100958,1728541846154,-611.0,0.000364,2]
[340100959,1728541846165,-4117.59551575,0.0003643,2]
[340100960,1728541846175,-378.77984725,0.0003644,2]
[340100961,1728541846188,-378.77984722,0.00036448,2]
[340100963,1728541846199,-378.77984722,0.00036455,2]
[340100964,1728541846210,-378.77984722,0.00036463,2]
[340100965,1728541846221,-378.77984722,0.0003647,2]
[340100966,1728541846235,-659.88,0.000365,30]
[340100967,1728541846247,-1000.0,0.000365,3]
[340100968,1728541846257,-3000.0,0.000365,28]
[340100969,1728541846268,-3000.0,0.0003651,28]
[340100970,1728541846279,-167.0,0.0003651,120]
[340100971,1728541846289,-3000.0,0.0003652,28]
[340100972,1728541846299,-3000.0,0.0003653,28]
[340100973,1728541846309,-2249.28178359,0.00036538,2]
[340100974,1728541846319,-216.64,0.0003654,3]
[340100975,1728541846329,-649.92,0.0003654,3]
[340100976,1728541846338,-814.83,0.0003654,10]
[340100977,1728541846348,-3000.0,0.0003654,28]